lending/lending_fUSD_20240703
["ID","MTS","AMOUNT","RATE_DAILY","PERIOD"]
[331039171,1720023046198,-1944.15604181,0.00020004,2]
[331039172,1720023046214,-477.75024862,0.00020004,2]
[331039173,1720023046226,-1695.50242284,0.00020004,2]
[331039174,1720023046246,-252.80408456,0.00020004,2]
[331039175,1720023299490,1398.95077001,0.00011199,2]
[331039176,1720023339262,1973.04420698,0.00011199,2]
[331039177,1720023348457,552.57239721,0.00011199,2]
[331039179,1720023368690,12282.55495953,0.00011199,2]
[331039180,1720023379374,516.08604424,0.00011199,2]
[331039181,1720023400798,900.0,0.00025,60]
[331039182,1720023460728,222.8249572,0.00011199,2]
[331039187,1720023712026,152.59085655,0.00025,60]
[331039189,1720023925596,1599.00185431,0.00011199,2]
[331039222,1720024224839,170.49300863,0.00011,3]
[331039231,1720024232688,-533.58228118,0.00013574,2]
[331039232,1720024232698,-548.67927737,0.00017181,2]
[331039233,1720024232711,-384.96716292,0.00017181,2]
[331039234,1720024232720,-334.60047675,0.00017259,2]
[331039235,1720024233012,-3440.07294455,0.00017259,2]
[331039236,1720024233034,-269.0000005,0.00017259,2]
[331039237,1720024233045,-956.3265782,0.00017259,2]
[331039238,1720024233054,-275.52474221,0.00017281,2]
[331039239,1720024233065,-159.82525779,0.00017281,2]
[331039240,1720024233075,-152.01646799,0.00017808,2]
[331039241,1720024233086,-10.72353201,0.00017808,2]
[331039242,1720024233095,-822.63648631,0.00017999,2]
[331039243,1720024233107,-537.12016184,0.00017999,2]
[331039244,1720024233118,-1730.18564207,0.00017999,2]
[331039245,1720024233127,-637.20020172,0.00018432,2]
[331039246,1720024233138,-2434.95402867,0.00018432,2]
[331039247,1720024233147,-1131.53749588,0.00018649,2]
[331039248,1720024233157,-490.83302147,0.00018717,2]
[331039249,1720024233180,-415.09721781,0.00018717,2]
[331039250,1720024233192,-114.02094585,0.00018717,2]
[331039251,1720024233201,-194.78647815,0.00018739,2]
[331039259,1720024237879,-2321.52352185,0.00018739,2]
[331039261,1720024237890,-499.99,0.00018759,2]
[331039262,1720024237900,-649.77336473,0.00018835,2]
[331039263,1720024237910,-155.0,0.00018899,2]
[331039264,1720024237920,-155.65180658,0.00018899,2]
[331039265,1720024237930,-227.12084219,0.00018999,2]
[331039266,1720024237940,-1250.0,0.00019,2]
[331039267,1720024237950,-155.0,0.00019077,2]
[331039268,1720024237960,-276.15184313,0.00019177,2]
[331039269,1720024237970,-8023.15,0.00019208,2]
[331039270,1720024237979,-250.0,0.00019224,2]
[331039271,1720024237989,-372.58840707,0.00019229,2]
[331039272,1720024237999,-200.0,0.00019231,2]
[331039273,1720024238009,-250.0,0.00019252,2]
[331039274,1720024238019,-253.61,0.0001928,2]
[331039275,1720024238030,-2000.0,0.00019479,3]
[331039276,1720024238040,-1875.0,0.000195,2]
[331039277,1720024238050,-192.29,0.00019513,2]
[331039278,1720024238059,-435.35,0.00019545,2]
[331039279,1720024238069,-150.0,0.00019699,2]
[331039280,1720024238079,-150.0,0.00019699,2]
[331039281,1720024238088,-150.0,0.00019699,2]
[331039282,1720024238098,-150.0,0.00019701,4]
[331039283,1720024238108,-777.58029,0.000198,2]
[331039284,1720024238118,-1839.0515,0.00019904,2]
[331039285,1720024238127,-2868.6652053,0.00019926,2]
[331039286,1720024238137,-867.82451069,0.0002,2]
[331039287,1720024238147,-327.27195084,0.0002,2]
[331039288,1720024238157,-251.28200291,0.0002,2]
[331039289,1720024238167,-150.0,0.00020066,4]
[331039290,1720024238176,-7600.0,0.0002008,2]
[331039291,1720024238186,-854.06,0.0002011,2]
[331039292,1720024238196,-854.06,0.0002011,2]
[331039293,1720024238205,-854.06,0.0002011,2]
[331039294,1720024238215,-846.7,0.0002011,2]
[331039295,1720024238225,-44.0269785,0.000202,2]
[331039296,1720024238237,-1974.92913103,0.000202,2]
[331039297,1720024238247,-777.58029,0.0002028,2]
[331039298,1720024238257,-196.93,0.00020413,2]
[331039299,1720024238267,-150.0,0.00020431,4]
[331039300,1720024238277,-150.0,0.00020497,2]
[331039301,1720024238287,-150.0,0.00020503,2]
[331039302,1720024238297,-15.84641448,0.00020514,2]
[331039303,1720024238327,-192.82296325,0.00020514,2]
[331039306,1720024238569,-150.0,0.00020527,2]
[331039307,1720024238581,-150.0,0.00020561,2]
[331039308,1720024238591,-150.0,0.00020575,2]
[331039309,1720024238601,-300.0,0.000206,7]
[331039310,1720024238610,-151.0,0.0002061,2]
[331039311,1720024238620,-500.0,0.00020633,2]
[331039312,1720024238629,-500.0,0.00020634,2]
[331039313,1720024238638,-500.0,0.00020634,2]
[331039314,1720024238647,-200.0,0.00020634,2]
[331039315,1720024238656,-150.0,0.00020681,2]
[331039316,1720024238666,-893.08502989,0.000207,2]
[331039317,1720024238680,-3505.662,0.000207,2]
[331039318,1720024238690,-600.0,0.000207,7]
[331039319,1720024238699,-159.02066336,0.00020737,2]
[331039320,1720024238711,-1035.60003294,0.00020737,2]
[331039321,1720024238721,-150.0,0.00020773,2]
[331039322,1720024238731,-166.0,0.00020776,2]
[331039323,1720024238741,-812.0,0.00020776,2]
[331039324,1720024238752,-401.051,0.00020776,2]
[331039325,1720024238763,-618.0,0.00020776,2]
[331039326,1720024238774,-449.73,0.00020776,2]
[331039327,1720024238784,-3196.0,0.00020776,2]
[331039328,1720024238794,-1613.56740784,0.00020776,2]
[331039329,1720024238806,-372.43259216,0.00020776,2]
[331039330,1720024238816,-547.0,0.00020776,2]
[331039331,1720024238825,-518.86,0.00020776,2]
[331039332,1720024238835,-2824.70740784,0.00020776,2]
[331039333,1720024238850,-2329.29259216,0.00020776,2]
[331039334,1720024238860,-1272.0,0.00020776,2]
[331039335,1720024238869,-360.0,0.00020776,2]
[331039336,1720024238882,-5809.0,0.00020776,2]
[331039337,1720024238892,-1830.0,0.00020776,2]
[331039338,1720024238902,-150.0,0.00020796,4]
[331039339,1720024238912,-2130.05150621,0.00020799,2]
[331039340,1720024238921,-165.08264122,0.00020799,2]
[331039341,1720024238931,-500.0,0.000208,2]
[331039342,1720024238942,-500.0,0.000208,2]
[331039343,1720024238952,-500.0,0.000208,2]
[331039344,1720024238962,-500.0,0.000208,2]
[331039345,1720024238971,-500.0,0.000208,2]
[331039346,1720024238981,-500.0,0.000208,2]
[331039347,1720024238991,-500.0,0.000208,2]
[331039348,1720024239001,-500.0,0.000208,2]
[331039349,1720024239011,-500.0,0.000208,2]
[331039350,1720024239020,-658.0,0.000208,2]
[331039351,1720024239031,-491.0,0.000208,3]
[331039352,1720024239040,-257.0,0.000208,2]
[331039353,1720024239049,-900.0,0.000208,7]
[331039354,1720024239060,-190.0,0.000208,3]
[331039355,1720024239070,-150.0,0.000208,2]
[331039356,1720024239081,-150.0,0.00020813,2]
[331039357,1720024239091,-2092.03921008,0.00020888,2]
[331039358,1720024239101,-1200.0,0.000209,7]
[331039359,1720024239111,-777.58029,0.000209,2]
[331039360,1720024239121,-151.0,0.00020908,2]
[331039361,1720024239131,-150.0,0.00020943,2]
[331039362,1720024239141,-150.0,0.00020953,2]
[331039363,1720024239151,-150.0,0.00020959,2]
[331039364,1720024239161,-211.0,0.00020967,2]
[331039365,1720024239171,-151.187,0.00020967,2]
[331039366,1720024239181,-151.28,0.00020967,2]
[331039367,1720024239191,-198.45,0.00020967,2]
[331039368,1720024239201,-193.746,0.00020967,2]
[331039369,1720024239212,-205.341,0.00020967,2]
[331039370,1720024239222,-150.0,0.00020967,2]
[331039371,1720024239232,-1000.0,0.00020968,2]
[331039372,1720024239242,-150.0,0.00020972,2]
[331039373,1720024239253,-190.96043022,0.00020978,2]
[331039374,1720024239271,-190.96043022,0.00020978,2]
[331039375,1720024239285,-190.96043022,0.00020978,2]
[331039376,1720024239296,-190.96043022,0.00020978,2]
[331039377,1720024239307,-190.96043022,0.00020978,2]
[331039378,1720024239318,-190.96043022,0.00020978,2]
[331039379,1720024239329,-190.96043022,0.00020978,2]
[331039380,1720024239340,-1089.55055981,0.00020987,5]
[331039381,1720024239351,-2840.3910026,0.00020988,2]
[331039382,1720024239362,-4991.1462314,0.00020988,2]
[331039383,1720024239373,-3666.43607281,0.00020988,2]
[331039384,1720024239473,-190.96043022,0.00020978,2]
[331039385,1720024239483,-40076.15017209,0.00020988,2]
[331039386,1720024239493,-431.88296663,0.00020988,2]
[331039387,1720024239503,-225.25950071,0.00021,2]
[331039388,1720024239514,-11015.30076684,0.00021,30]
[331039389,1720024240148,-202.25757491,0.00018919,2]
[331039390,1720024240158,-190.96043022,0.00020978,2]
[331039391,1720024240168,-190.96043022,0.00020978,2]
[331039392,1720024240178,-190.96043022,0.00020978,2]
[331039393,1720024240188,-22.97138099,0.00020978,2]
[331039394,1720024240201,-167.98904923,0.00020978,2]
[331039395,1720024240211,-190.96043022,0.00020978,2]
[331039396,1720024240223,-190.96043022,0.00020978,2]
[331039397,1720024240233,-190.96043022,0.00020978,2]
[331039398,1720024240243,-190.96043022,0.00020978,2]
[331039399,1720024240253,-196.14803296,0.00021,30]
[331039492,1720024244076,-155.0,0.00019069,2]
[331039493,1720024244085,-190.96043022,0.00020978,2]
[331039494,1720024244094,-190.96043022,0.00020978,2]
[331039495,1720024244103,-190.96043022,0.00020978,2]
[331039496,1720024244112,-190.96043022,0.00020978,2]
[331039497,1720024244121,-190.96043022,0.00020978,2]
[331039498,1720024244130,-190.96043022,0.00020978,2]
[331039499,1720024244139,-190.96043022,0.00020978,2]
[331039500,1720024244148,-190.96043022,0.00020978,2]
[331039501,1720024244159,-190.96043022,0.00020978,2]
[331039502,1720024244169,-190.96043022,0.00020978,2]
[331039503,1720024244178,-190.96043022,0.00020978,2]
[331039504,1720024244187,-190.96043022,0.00020978,2]
[331039505,1720024244196,-190.96043022,0.00020978,2]
[331039506,1720024244206,-190.96043022,0.00020978,2]
[331039507,1720024244215,-957.17151599,0.00021,30]
[331039508,1720024244235,-190.96043022,0.00020978,2]
[331039509,1720024244244,-1035.75903247,0.00021,30]
[331039510,1720024244255,-25411.82065174,0.00021,30]
[331039511,1720024244264,-6295.57481472,0.00021,2]
[331039512,1720024244273,-1300.0,0.00021,2]
[331039513,1720024244291,-716.63369653,0.0002104,2]
[331039514,1720024244300,-150.0,0.00021096,2]
[331039515,1720024244309,-150.0,0.00021096,2]
[331039516,1720024244319,-150.0,0.00021096,2]
[331039517,1720024244329,-150.0,0.00021096,2]
[331039518,1720024244340,-150.0,0.00021096,2]
[331039519,1720024244351,-150.0,0.00021096,2]
[331039520,1720024244360,-150.0,0.00021096,2]
[331039521,1720024244369,-150.0,0.00021096,2]
[331039522,1720024244378,-2092.03921,0.0002111,2]
[331039523,1720024244387,-150.0,0.00021161,4]
[331039524,1720024244397,-151.0,0.00021206,2]
[331039525,1720024244408,-2092.03921,0.00021333,2]
[331039526,1720024244417,-2778.61,0.0002134,6]
[331039527,1720024244426,-7500.0,0.0002135,2]
[331039528,1720024244435,-786.0,0.00021379,2]
[331039529,1720024244444,-320.93062954,0.0002138,2]
[331039530,1720024244454,-275.0502675,0.0002139,2]
[331039531,1720024244463,-215.0,0.000214,2]
[331039532,1720024244472,-1391.37444476,0.000214,2]
[331039533,1720024244481,-169.08322514,0.000214,2]
[331039534,1720024244491,-186.97945269,0.000214,3]
[331039535,1720024244500,-4369.49355392,0.000214,2]
[331039536,1720024244509,-1599.50273633,0.0002143,4]
[331039585,1720024246408,-155.0,0.00018864,2]
[331039586,1720024246418,-1655.0,0.00020685,2]
[331039587,1720024246427,-1556.017,0.00020685,2]
[331039588,1720024246436,-190.96043022,0.00020978,2]
[331039589,1720024246445,-190.96043022,0.00020978,2]
[331039590,1720024246455,-190.96043022,0.0002099,2]
[331039591,1720024246464,-190.96043022,0.0002099,2]
[331039592,1720024246473,-190.96043022,0.0002099,2]
[331039593,1720024246483,-190.96043022,0.0002099,2]
[331039594,1720024246492,-156.39052456,0.0002099,2]
[331039669,1720025433216,-659.47,0.0001251,2]
[331039670,1720025433227,-876.66018865,0.0001251,2]
[331039671,1720025433236,-412.75,0.00012754,2]
[331039672,1720025433246,-9181.54944821,0.00013,2]
[331039673,1720025433255,-168.58,0.00013441,2]
[331039674,1720025433264,-150.0,0.00013863,2]
[331039675,1720025433273,-20301.27473793,0.0001387,2]
[331039678,1720025437292,97511.82674021,0.00011199,2]
[331039697,1720025438174,-328.559,0.0001387,2]
[331039701,1720025438277,-1438.87527762,0.0001387,2]
[331039702,1720025438293,-1082.17917477,0.0001387,2]
[331039703,1720025438304,-630.05082092,0.0001387,2]
[331039704,1720025438316,-534.71422147,0.0001387,2]
[331039705,1720025438329,-335.125,0.0001387,2]
[331039706,1720025438340,-6146.48951476,0.0001387,2]
[331039707,1720025438352,-1003.36047816,0.0001387,2]
[331039708,1720025438364,-1870.6952751,0.0001387,2]
[331039709,1720025438375,-346.7403356,0.0001387,2]
[331039720,1720025440544,-1780.95012414,0.0001387,2]
[331039721,1720025440601,-1174.31752417,0.0001387,2]
[331039722,1720025440768,-260.05230706,0.0001387,2]
[331039738,1720025444386,-1325.47695293,0.0001387,2]
[331039758,1720025446208,-294.99151877,0.0001387,2]
[331039759,1720025446219,-5014.56005756,0.0001387,2]
[331039760,1720025446228,-150.0,0.00013899,2]
[331039761,1720025446236,-215.6511,0.000139,2]
[331039762,1720025446245,-15325.62849918,0.000139,2]
[331039763,1720025446269,-953.44330082,0.000139,2]
[331039764,1720025446277,-1733.38088245,0.000139,2]
[331039765,1720025446287,-1651.23530956,0.000139,2]
[331039766,1720025446296,-1305.53734535,0.000139,2]
[331039767,1720025446305,-585.63,0.00013989,3]
[331039768,1720025446314,-201.17402604,0.0001399,2]
[331039769,1720025446325,-90831.77533926,0.00014,2]
[331039770,1720025446337,-2652.80679033,0.00014,2]
[331039771,1720025446348,-1260.03991798,0.00014,2]
[331039772,1720025446359,-629.27928532,0.00014,2]
[331039773,1720025446370,-1520.38040029,0.00014,2]
[331039774,1720025446384,-415.30294926,0.00014,2]
[331039775,1720025446395,-429.75631163,0.00014,2]
[331039776,1720025446406,-408.48752001,0.00014,2]
[331039777,1720025446417,-807.72473156,0.00014,2]
[331039778,1720025446428,-882.1746128,0.00014,2]
[331039779,1720025446439,-3250.57147,0.00014,2]
[331039780,1720025446457,-82007.78657697,0.00014,2]
[331039781,1720025446468,-1532.24105838,0.00014,2]
[331039798,1720025446721,-4458.4913881,0.00014,2]
[331039801,1720025446732,-599.17970004,0.00014,2]
[331039803,1720025446743,-369.80007656,0.00014,2]
[331039832,1720025509920,150.0,0.00011079,2]
[331039833,1720025570152,150.0,0.00011059,2]
[331039834,1720025629219,150.0,0.0001104,2]
[331039835,1720025871544,754.30269888,0.00011199,2]
[331039837,1720025966447,216.43427794,0.00011199,2]
[331039839,1720025992171,222.22403384,0.00011199,2]
[331039840,1720026005048,150.0,0.00011199,2]
[331039841,1720026005298,150.0,0.00011199,2]
[331039842,1720026005720,150.0,0.00011199,2]
[331039843,1720026006064,150.0,0.00011199,2]
[331039844,1720026006304,150.0,0.00011199,2]
[331039845,1720026006551,150.0,0.00011199,2]
[331039846,1720026007056,150.0,0.00011199,2]
[331039847,1720026007289,150.0,0.00011199,2]
[331039848,1720026007387,625.50090201,0.00011199,2]
[331039849,1720026007518,150.0,0.00011199,2]
[331039850,1720026007723,160.4295072,0.00011199,2]
[331039852,1720026050321,529.12306207,0.00011199,2]
[331039853,1720026088088,490.89,0.00011199,2]
[331039856,1720026131665,155.0,0.00011199,2]
[331039857,1720026135415,414.37242025,0.00011199,2]
[331039858,1720026144674,348.60068368,0.00011199,2]
[331039859,1720026151720,260.6444492,0.00011199,2]
[331039860,1720026190389,959.60022678,0.00011199,2]
[331039862,1720026231673,155.04851952,0.00011199,2]
[331039863,1720026251695,348.46898304,0.00011199,2]
[331039870,1720026425058,2677.72005261,0.00011,2]
[331039895,1720026472403,1021.84008689,0.00011199,2]
[331039896,1720026478900,625.64470959,0.00011199,2]
[331039897,1720026489190,1452.53356908,0.00011199,2]
[331039898,1720026520319,2680.1071023,0.00011199,2]
[331039899,1720026598452,411.27901864,0.00011199,2]
[331039900,1720026603151,150.0,0.00011199,2]
[331039901,1720026603365,150.0,0.00011199,2]
[331039902,1720026603570,150.0,0.00011199,2]
[331039903,1720026603765,150.0,0.00011199,2]
[331039904,1720026604204,150.0,0.00011199,2]
[331039905,1720026604422,150.0,0.00011199,2]
[331039906,1720026604621,298.46034959,0.00011199,2]
[331039907,1720026617663,754.14237346,0.00011199,2]
[331039909,1720026632438,-359.16532702,0.0001173,2]
[331039910,1720026632450,-602.95127298,0.0001173,2]
[331039911,1720026632460,-168.58,0.0001183,2]
[331039912,1720026632471,-347.91425735,0.00012302,2]
[331039913,1720026632481,-595.89459787,0.00012302,2]
[331039914,1720026632491,-168.18114171,0.00012314,2]
[331039915,1720026632501,-650.99676465,0.00013128,2]
[331039916,1720026632511,-300.37937002,0.00013574,2]
[331039917,1720026632521,-1136.94159012,0.00013574,2]
[331039918,1720026632530,-1367.01150639,0.00013574,2]
[331039919,1720026632539,-955.73097325,0.00013574,2]
[331039920,1720026632549,-348.60068368,0.00013574,2]
[331039921,1720026632558,-959.77692089,0.00013574,2]
[331039922,1720026632567,-417.14874861,0.00013751,2]
[331039923,1720026632576,-250.0,0.00013807,2]
[331039924,1720026632585,-220.36,0.0001389,3]
[331039925,1720026632596,-3768.5956,0.000139,2]
[331039926,1720026632605,-385.42000634,0.00013953,2]
[331039927,1720026632614,-167.59,0.00013961,2]
[331039928,1720026632623,-2000.0,0.00013973,3]
[331039929,1720026632631,-155.30384103,0.00013989,2]
[331039930,1720026632641,-484.10288802,0.00013989,2]
[331039931,1720026632650,-2750.41235953,0.00013996,2]
[331039932,1720026632659,-182.46591203,0.00013996,2]
[331039933,1720026632668,-150.0,0.00013999,2]
[331039934,1720026632678,-3204.94183379,0.00014,2]
[331039935,1720026632689,-3122.66084388,0.00014,2]
[331039936,1720026632704,-1305.53734535,0.00014,2]
[331039940,1720026638564,-1270.85793586,0.00013574,2]
[331039941,1720026638573,-250479.00657782,0.00014,2]
[331039942,1720026638633,-3932.98,0.00014,2]
[331039943,1720026640481,-696.37678912,0.00014,2]
[331039947,1720026640492,-443.23700073,0.00014,2]
[331039950,1720026640571,-641.77489998,0.00014,2]
[331039951,1720026640932,-2868.43341692,0.00014,2]
[331039952,1720026640943,-3140.04385146,0.00014,2]
[331039953,1720026640955,-5198.16634652,0.00014,2]
[331039954,1720026640966,-2930.71735568,0.00014,2]
[331039955,1720026640977,-3347.20056762,0.00014,2]
[331039956,1720026640988,-3027.95925375,0.00014,2]
[331039957,1720026641014,-407.06891935,0.00014,2]
[331040004,1720026643571,-527.46202022,0.00014,2]
[331040005,1720026643582,-21277.02201902,0.00014,2]
[331040006,1720026643593,-667.35,0.00014,2]
[331040007,1720026643639,-9152.45876887,0.00014,2]
[331040008,1720026643707,-27831.38085577,0.00014,2]
[331040009,1720026643719,-1757.24990833,0.00014,2]
[331040010,1720026643779,-276.03969957,0.00014,2]
[331040011,1720026643791,-4526.756931,0.00014,2]
[331040012,1720026643805,-14058.57350523,0.00014,2]
[331040013,1720026643855,-641.5247125,0.00014,2]
[331040014,1720026643866,-361.6920653,0.00014,2]
[331040015,1720026643931,-16211.76204517,0.00014,2]
[331040016,1720026643940,-3131.03084505,0.00014096,2]
[331040017,1720026643949,-150.0,0.00014196,2]
[331040018,1720026643958,-736.07961,0.0001465,2]
[331040019,1720026643967,-2750.41235951,0.00014885,2]
[331040020,1720026643977,-218.22,0.00014904,4]
[331040021,1720026643986,-150.32,0.00014921,2]
[331040022,1720026643995,-736.07961,0.0001496,2]
[331040023,1720026644004,-3131.030845,0.00014974,2]
[331040024,1720026644013,-29104.24256634,0.00015,2]
[331040025,1720026644022,-291.58,0.00015,2]
[331040026,1720026644033,-150.32,0.00015116,2]
[331040027,1720026644043,-489.22,0.00015222,2]
[331040028,1720026644052,-736.07961,0.0001527,2]
[331040029,1720026644061,-150.32,0.0001531,2]
[331040030,1720026644071,-810.0,0.000154,3]
[331040031,1720026644080,-150.32,0.00015505,2]
[331040032,1720026644090,-736.07961,0.0001559,2]
[331040033,1720026644099,-150.32,0.00015699,2]
[331040034,1720026644108,-2750.41235951,0.00015775,2]
[331040035,1720026644117,-11483.0,0.000158,5]
[331040036,1720026644127,-3131.030845,0.00015852,2]
[331040037,1720026644136,-736.07961,0.000159,2]
[331040038,1720026644145,-736.07961,0.0001621,2]
[331040039,1720026644155,-2750.41235951,0.00016664,2]
[331040040,1720026644164,-3131.030845,0.00016731,2]
[331040041,1720026644173,-684.6855422,0.00016969,2]
[331040042,1720026644182,-840.0,0.00017042,2]
[331040043,1720026644191,-167.55,0.00017055,2]
[331040044,1720026644201,-1137.81,0.00017104,5]
[331040045,1720026644210,-325.27,0.00017114,2]
[331040046,1720026644219,-541.78,0.00017138,2]
[331040047,1720026644228,-202.25757491,0.00017159,2]
[331040048,1720026644237,-155.0,0.00017199,2]
[331040049,1720026644247,-276.15184313,0.00017259,2]
[331040050,1720026644256,-212.9,0.00017273,2]
[331040051,1720026644266,-728.0,0.000174,3]
[331040052,1720026644275,-3476.0,0.000174,3]
[331040053,1720026644284,-489.22,0.00017486,2]
[331040054,1720026644294,-227.12084219,0.00017533,2]
[331040055,1720026644303,-2750.41235951,0.00017553,2]
[331040056,1720026644312,-3131.030845,0.00017609,2]
[331040057,1720026644322,-3890.27902785,0.00017807,2]
[331040058,1720026644331,-2750.41235951,0.00018443,2]
[331040059,1720026644340,-3131.030845,0.00018487,2]
[331040060,1720026644349,-1177.77944101,0.00018649,2]
[331040061,1720026644359,-1264.73271285,0.00018739,2]
[331040062,1720026644368,-647.26467047,0.00018759,2]
[331040063,1720026644378,-702.24261395,0.00018759,2]
[331040064,1720026644387,-265.49604132,0.00018835,2]
[331040065,1720026644399,-504.94138761,0.00018919,2]
[331040066,1720026644410,-1250.0,0.00019,2]
[331040067,1720026644421,-840.0,0.00019172,2]
[331040068,1720026644434,-250.0,0.00019178,2]
[331040069,1720026644443,-325.27,0.00019253,2]
[331040070,1720026644455,-150.0,0.00019332,4]
[331040071,1720026644467,-2750.41235951,0.00019332,2]
[331040072,1720026644477,-3131.030845,0.00019365,2]
[331040073,1720026644486,-255.99257949,0.00019399,2]
[331040074,1720026644497,-1000.0,0.00019487,2]
[331040075,1720026644508,-2500.0,0.000195,2]
[331040076,1720026644520,-200.0,0.000195,2]
[331040077,1720026644531,-183.0,0.000195,2]
[331040078,1720026644543,-617.0,0.00019653,2]
[331040079,1720026644552,-449.0,0.00019653,2]
[331040080,1720026644562,-1271.48,0.00019653,2]
[331040081,1720026644572,-489.22,0.0001975,2]
[331040082,1720026644581,-153.92,0.00019767,2]
[331040083,1720026644590,-477.75024862,0.0001977,2]
[331040084,1720026644599,-4600.81390484,0.000199,3]
[331040085,1720026644608,-156.03660824,0.0002,2]
[331040086,1720026644618,-200.50954428,0.0002,2]
[331040087,1720026644627,-155.16770843,0.0002,3]
[331040088,1720026644636,-2750.41235951,0.00020221,2]
[331040089,1720026644645,-3131.030845,0.00020244,2]
[331040090,1720026644654,-150.0,0.00020325,2]
[331040091,1720026644663,-2007.01373796,0.000205,5]
[331040092,1720026644673,-150.0,0.00020725,2]
[331040093,1720026644682,-185.46399961,0.0002079,2]
[331040094,1720026644691,-100383.432125,0.000208,2]
[331040095,1720026644700,-193.26382296,0.0002089,2]
[331040096,1720026644709,-179.81821662,0.0002089,2]
[331040097,1720026644718,-151.84120511,0.0002089,2]
[331040098,1720026644727,-22307.4293612,0.0002089,2]
[331040099,1720026644738,-399.90842983,0.0002089,2]
[331040100,1720026644748,-151.0,0.000209,2]
[331040101,1720026644758,-151.0,0.000209,2]
[331040102,1720026644771,-151.0,0.000209,2]
[331040103,1720026644785,-151.0,0.000209,2]
[331040104,1720026644794,-151.0,0.000209,2]
[331040105,1720026644803,-151.0,0.000209,2]
[331040106,1720026644813,-243.360314,0.000209,2]
[331040107,1720026644822,-11153.7146806,0.00020951,2]
[331040108,1720026644832,-11153.7146806,0.00020951,2]
[331040109,1720026644841,-151.0,0.0002096,2]
[331040110,1720026644851,-151.0,0.0002096,2]
[331040111,1720026644861,-1156.867558,0.0002096,2]
[331040112,1720026644872,-1156.867558,0.0002096,2]
[331040113,1720026644881,-151.0,0.0002096,2]
[331040114,1720026644890,-151.0,0.0002096,2]
[331040115,1720026644899,-171.637636,0.0002096,2]
[331040116,1720026644910,-171.637636,0.0002096,2]
[331040117,1720026644919,-151.0,0.0002096,2]
[331040118,1720026644929,-276.03048,0.0002096,2]
[331040119,1720026644938,-151.0,0.0002096,2]
[331040120,1720026644948,-151.0,0.0002096,2]
[331040121,1720026644957,-151.0,0.0002096,2]
[331040122,1720026644967,-151.0,0.0002096,2]
[331040123,1720026644977,-397.307005,0.0002096,2]
[331040124,1720026644986,-836.54155768,0.0002096,2]
[331040128,1720026646745,-255.99257949,0.00017088,2]
[331040129,1720026647214,-3576.36206282,0.00017088,2]
[331040131,1720026823638,11000.0,0.00011199,2]
[331040132,1720026830450,2995.65492303,0.00011199,2]
[331040133,1720026833115,10000.0,0.00011199,2]
[331040134,1720026839162,4455.21626006,0.00011199,2]
[331040135,1720026856942,959.77692089,0.00011199,2]
[331040136,1720026871724,348.60068368,0.00011199,2]
[331040137,1720026889980,2373.57182662,0.00011199,2]
[331040138,1720026904805,1367.01150639,0.00011199,2]
[331040139,1720026917919,1135.26906695,0.00011199,2]
[331040141,1720026942427,959.77692089,0.00011199,2]
[331040142,1720026950101,669.96689888,0.00011199,2]
[331040143,1720026974262,348.60068368,0.00011199,2]
[331040144,1720027025338,959.77692089,0.00011199,2]
[331040145,1720027055696,4459.20610151,0.00011199,2]
[331040146,1720027081747,348.60068368,0.00011199,2]
[331040147,1720027083403,155.24207177,0.00011199,2]
[331040149,1720027085654,155.30384103,0.00011199,2]
[331040150,1720027095116,214.99485896,0.00011199,2]
[331040151,1720027111122,5797.11331304,0.00011199,2]